bitfinex-derivatives/quotes_SOLF0:USTF0_20260129
["timestamp","ask_amount","ask_price","bid_price","bid_amount"]
[1769703680320,7.635,118.06,118.0,27.46010121]
[1769703680930,7.89130071,118.07,118.0,27.46010121]
[1769703680931,7.6358,118.05,118.0,27.46010121]
[1769703681127,7.89130071,118.07,118.0,27.46010121]
[1769703681425,7.89130071,118.09,118.0,27.46010121]
[1769703682022,5.56716227,118.08,118.0,27.46010121]
[1769703682228,13.45846298,118.07,118.0,27.46010121]
[1769703682630,7.6365,118.04,118.0,27.46010121]
[1769703682834,7.89130071,118.05,117.97,27.46010121]
[1769703683533,7.89130071,118.03,117.97,27.46010121]
[1769703684318,7.6376,118.02,117.97,27.46010121]
[1769703684827,22.52981771,118.01,117.91,337.65123982]
[1769703685124,7.89130071,117.97,117.86,118.9687]
[1769703685329,7.89130071,117.97,117.85,457.3122]
[1769703685733,7.6418,117.96,117.87,7.6468]
[1769703686145,7.6418,117.96,117.86,118.9682]
[1769703686820,7.6424,117.95,117.87,27.69459075]
[1769703687025,126.77400071,117.95,117.87,27.69459075]
[1769703688433,7.643,117.94,117.87,27.69459075]
[1769703689122,7.642,117.96,117.87,27.69459075]
[1769703689322,126.77290071,117.95,117.87,27.69459075]
[1769703690338,7.6437,117.93,117.87,27.69459075]
[1769703690835,15.53500071,117.93,117.87,27.69459075]
[1769703691036,7.6442,117.92,117.87,27.69459075]
[1769703691239,7.6442,117.92,117.85,338.34]
[1769703691240,7.89130071,117.89,117.79,457.5173]
[1769703691738,7.6462,117.89,117.81,7.6508]
[1769703691936,37.48570507,117.91,117.8,119.0281]
[1769703692133,7.6456,117.9,117.8,126.6795]
[1769703692333,37.48570507,117.91,117.8,119.0281]
[1769703692636,29.59440436,117.91,117.8,119.0281]
[1769703692943,37.48570507,117.91,117.82,7.6502]
[1769703693144,37.48570507,117.91,117.83,28.60465238]
[1769703693838,35.90560642,117.94,117.85,28.60465238]
[1769703694041,36.15380713,117.96,117.85,28.60465238]
[1769703694632,7.643,117.94,117.85,28.60465238]
[1769703694832,36.15380713,117.94,117.85,28.60465238]
[1769703695837,144.58705116,117.96,117.85,28.60465238]
[1769703695838,7.6427,117.95,117.87,28.60465238]
[1769703696037,7.89130071,117.96,117.87,28.60465238]
[1769703696335,28.26250642,117.97,117.88,28.60465238]
[1769703696736,28.26250642,117.97,117.9,28.60465238]
[1769703697643,28.26250642,117.96,117.88,28.60465238]
[1769703698544,7.6425,117.95,117.88,28.60465238]
[1769703699241,35.90500642,117.95,117.88,28.60465238]
[1769703701545,28.26250642,117.95,117.88,36.25115238]
[1769703704755,35.90470642,117.95,117.88,36.25115238]
[1769703705045,35.90470642,117.95,117.88,28.60465238]
[1769703706144,28.26250642,117.96,117.88,36.25075238]
[1769703706947,28.26250642,117.94,117.85,28.60465238]
[1769703708356,28.26250642,117.92,117.85,28.60465238]
[1769703708652,36.15380713,117.91,117.82,28.60465238]
[1769703709054,118.8994,117.93,117.83,28.60465238]
[1769703709254,147.16190642,117.93,117.83,28.60465238]
[1769703709454,28.26250642,117.92,117.83,28.60465238]
[1769703709657,7.6454,117.9,117.83,28.60465238]
[1769703709950,28.26250642,117.92,117.83,28.60465238]
[1769703710156,155.04400713,117.94,117.83,28.60465238]
[1769703710452,7.6448,117.91,117.85,28.60465238]
[1769703710854,28.26250642,117.93,117.85,28.60465238]
[1769703711053,7.89130071,117.94,117.83,126.88770071]
[1769703711254,28.26250642,117.98,117.88,28.60465238]
[1769703711849,32.86233672,118.01,117.92,28.60465238]
[1769703711850,28.26250642,118.01,117.92,28.60465238]
[1769703712047,118.8022,118.03,117.92,28.60465238]
[1769703712257,147.06470642,118.03,117.92,28.60465238]
[1769703712452,7.6383,118.01,117.94,36.24725238]
[1769703712857,7.6383,118.01,117.94,28.60465238]
[1769703713253,7.6389,118.0,117.94,28.60465238]
[1769703714952,7.6382,118.02,117.94,28.60465238]
[1769703715165,28.26250642,118.02,117.94,28.60465238]
[1769703715759,35.90020642,118.02,117.94,28.60465238]
[1769703716453,28.52303395,118.05,117.96,28.01234738]
[1769703717654,28.52303395,118.03,117.94,28.01234738]
[1769703718756,28.52303395,118.01,117.89,118.9378]
[1769703718958,28.52303395,118.01,117.91,28.01234738]
[1769703719661,28.52303395,118.0,117.92,7.6436]
[1769703719855,28.52303395,118.0,117.92,35.65594738]
[1769703720054,28.52303395,118.0,117.89,118.9378]
[1769703720055,28.52303395,117.98,117.89,28.01234738]
[1769703720756,7.6411,117.97,117.9,28.01234738]
[1769703720956,28.52303395,117.98,117.9,28.01234738]
[1769703721756,28.52303395,117.98,117.91,28.01234738]
[1769703721957,28.52303395,117.96,117.88,366.73234738]
[1769703722161,28.52303395,117.96,117.89,28.01234738]
[1769703723060,36.16463395,117.96,117.89,28.01234738]
[1769703723368,28.52303395,117.96,117.89,28.01234738]
[1769703723552,7.6414,117.97,117.89,28.01234738]
[1769703724155,118.8524,117.98,117.9,28.01234738]
[1769703724156,7.6402,117.98,117.9,28.01234738]
[1769703724465,147.33343395,118.02,117.91,28.01234738]
[1769703724858,147.39423395,117.96,117.86,28.01234738]
[1769703725167,28.52303395,117.93,117.86,28.01234738]
[1769703725357,28.52303395,117.96,117.86,28.01234738]
[1769703725864,7.6427,117.95,117.88,28.01234738]
[1769703726163,28.52303395,117.96,117.88,28.01234738]
[1769703727455,7.6428,117.94,117.88,28.01234738]
[1769703727656,147.39633395,117.96,117.88,28.01234738]
[1769703727855,28.52303395,117.96,117.88,28.01234738]
[1769703729571,147.39463395,117.96,117.88,28.01234738]
[1769703730363,7.6435,117.93,117.88,28.01234738]
[1769703731465,7.6435,117.93,117.88,366.69234738]
[1769703732357,147.39463395,117.96,117.88,366.69234738]
[1769703732560,28.52303395,117.95,117.88,366.69234738]
[1769703733060,36.16533395,117.95,117.88,366.69234738]
[1769703734965,7.643,117.94,117.88,366.69234738]
[1769703735160,36.16603395,117.94,117.89,338.68]
[1769703735761,7.6435,117.93,117.88,28.01234738]
[1769703735964,28.52303395,117.92,117.85,28.01234738]
[1769703736167,7.6441,117.92,117.86,366.71234738]
[1769703736870,36.16633395,117.94,117.87,28.01234738]
[1769703737170,7.6433,117.94,117.87,28.01234738]
[1769703737465,36.16633395,117.94,117.87,28.01234738]
[1769703738366,36.16633395,117.94,117.87,35.65944738]
[1769703738964,28.52303395,117.94,117.87,28.01234738]
[1769703739160,28.52303395,117.94,117.88,338.7]
[1769703740365,7.6441,117.92,117.88,338.7]
[1769703741662,36.16643395,117.94,117.88,338.7]
[1769703742066,7.6434,117.94,117.88,366.71234738]
[1769703742278,28.52303395,117.96,117.89,28.01234738]
[1769703743357,7.643,117.94,117.89,28.01234738]
[1769703744070,7.6437,117.93,117.88,366.71234738]
[1769703744765,7.6437,117.93,117.89,338.74]
[1769703744961,28.52303395,117.95,117.86,7.6479]
[1769703744962,28.52303395,117.95,117.86,35.66024738]
[1769703745161,28.52303395,117.94,117.87,311.75234738]
[1769703745362,28.52303395,117.94,117.88,25.91385101]
[1769703746167,7.6434,117.93,117.88,25.91385101]
[1769703746671,7.6441,117.92,117.89,338.74]
[1769703747369,25.32608932,117.91,117.82,25.91385101]
[1769703747557,25.32608932,117.91,117.84,25.91385101]
[1769703748359,7.6456,117.9,117.84,25.91385101]
[1769703749763,118.9251,117.91,117.84,25.91385101]
[1769703749967,25.32608932,117.91,117.83,93.67385101]
[1769703750774,7.6461,117.89,117.83,93.67385101]
[1769703753869,24.99711438,117.88,117.83,67.76]
[1769703754077,7.6494,117.84,117.77,26.65929075]
[1769703754274,143.97961438,117.85,117.77,26.65929075]
[1769703754475,143.98861438,117.84,117.77,26.65929075]
[1769703754968,7.6508,117.82,117.77,26.65929075]
[1769703755164,24.99711438,117.81,117.72,26.65929075]
[1769703755362,7.6525,117.79,117.73,338.8]
[1769703755774,7.6525,117.79,117.7,26.65929075]
[1769703755775,144.05101438,117.78,117.7,26.65929075]
[1769703756071,144.03181438,117.8,117.7,26.65929075]
[1769703756379,144.00421438,117.83,117.72,7.89856393]
[1769703756571,7.6516,117.81,117.73,26.65929075]
[1769703756872,144.00851438,117.82,117.73,365.47929075]
[1769703757174,24.99711438,117.82,117.74,26.65929075]
[1769703757672,7.6524,117.8,117.74,26.65929075]
[1769703758968,144.03351438,117.8,117.72,338.9]
[1769703759868,119.0424,117.79,117.72,338.9]
[1769703760164,24.99711438,117.8,117.73,26.65929075]
[1769703761268,7.6528,117.79,117.73,26.65929075]
[1769703761769,24.99711438,117.78,117.7,26.65929075]
[1769703761968,119.0361,117.8,117.71,26.65929075]
[1769703762282,144.03321438,117.8,117.71,26.65929075]
[1769703762576,7.6533,117.78,117.71,26.65929075]
[1769703764668,24.99711438,117.77,117.68,34.55785468]
[1769703764877,144.05951438,117.77,117.69,365.67929075]
[1769703765573,7.6559,117.74,117.69,26.65929075]
[1769703765873,144.05951438,117.77,117.69,26.65929075]
[1769703766177,7.6553,117.75,117.69,26.65929075]
[1769703767278,7.6542,117.77,117.71,26.65929075]
[1769703767875,145.01124478,117.76,117.68,23.93283527]
[1769703768281,119.082,117.75,117.68,23.93283527]
[1769703768481,145.02964478,117.74,117.65,23.93283527]
[1769703768682,25.93794478,117.74,117.67,23.93283527]
[1769703768879,7.6565,117.73,117.67,23.93283527]
[1769703769084,144.99984478,117.77,117.69,23.93283527]
[1769703770286,7.6557,117.75,117.69,23.93283527]
[1769703770778,7.6557,117.75,117.68,7.89856393]
[1769703770779,145.01994478,117.75,117.68,7.54679798]
[1769703771087,7.6571,117.72,117.66,233.21856393]
[1769703771875,7.6571,117.72,117.66,7.89856393]
[1769703772476,7.6577,117.71,117.66,7.89856393]
[1769703772675,145.01994478,117.75,117.66,7.89856393]
[1769703772872,7.6571,117.72,117.67,23.93283527]
[1769703774475,7.6577,117.71,117.67,23.93283527]
[1769703775383,7.6584,117.7,117.67,10.73603527]
[1769703775583,7.6584,117.7,117.67,3.527e-05]
[1769703776480,142.78315272,117.75,117.67,3.527e-05]
[1769703776682,23.70115272,117.73,117.65,7.89856393]
[1769703777281,23.70115272,117.73,117.64,7.6617]
[1769703777481,23.70115272,117.73,117.66,24.667011]
[1769703778076,31.35775272,117.73,117.66,24.667011]
[1769703779389,7.6573,117.72,117.66,24.667011]
[1769703779686,23.70115272,117.72,117.65,7.89856393]
[1769703779895,23.70115272,117.7,117.63,24.667011]
[1769703780590,31.35955272,117.7,117.63,24.667011]
[1769703780890,23.70115272,117.7,117.63,24.667011]
[1769703781293,7.6577,117.71,117.64,40.22767493]
[1769703781688,23.70115272,117.71,117.64,32.60023036]
[1769703781880,23.70115272,117.71,117.64,40.26243036]
[1769703782490,7.6579,117.71,117.65,24.667011]
[1769703783195,31.35905272,117.71,117.65,24.667011]
[1769703783387,7.6579,117.71,117.65,32.328611]
[1769703783890,23.70115272,117.72,117.66,7.6607]
[1769703784093,23.70115272,117.76,117.69,24.667011]
[1769703784687,23.70115272,117.73,117.66,24.667011]
[1769703785194,23.70115272,117.73,117.64,363.967011]
[1769703785397,7.6577,117.71,117.65,32.328611]
[1769703785584,7.6577,117.71,117.65,24.667011]
[1769703786495,7.6571,117.72,117.65,24.667011]
[1769703786800,23.70115272,117.73,117.65,24.667011]
[1769703787585,34.68936692,117.73,117.67,3.3316142]
[1769703787786,34.68936692,117.73,117.66,27.9986252]
[1769703787990,34.68936692,117.73,117.66,24.667011]
[1769703788201,31.35775272,117.73,117.66,27.9986252]
[1769703788501,34.68936692,117.73,117.66,27.9986252]
[1769703789603,27.03276692,117.73,117.66,27.9986252]
[1769703789806,23.70115272,117.73,117.67,3.3316142]
[1769703790393,31.35765272,117.73,117.67,3.3316142]
[1769703790598,3.3316142,117.71,117.64,24.667011]
[1769703790800,3.3316142,117.71,117.65,3.3316142]
[1769703790999,27.03276692,117.72,117.65,3.3316142]
[1769703791199,7.6578,117.71,117.65,24.667011]
[1769703791399,7.6578,117.71,117.66,3.3316142]
[1769703792108,7.6584,117.7,117.65,27.9986252]
[1769703792499,23.70115272,117.72,117.66,3.3316142]
[1769703792897,7.6584,117.7,117.66,3.3316142]
[1769703793108,7.6584,117.7,117.65,27.9986252]
[1769703793704,7.6584,117.7,117.65,24.667011]
[1769703795309,23.70115272,117.72,117.65,24.667011]
[1769703796907,23.70115272,117.7,117.63,24.667011]
[1769703797315,23.70115272,117.7,117.64,24.667011]
[1769703797504,31.35965272,117.7,117.64,24.667011]
[1769703798310,23.70115272,117.72,117.64,24.667011]
[1769703798518,23.70115272,117.71,117.64,24.667011]
[1769703798811,7.6586,117.7,117.64,24.667011]
[1769703799711,7.6591,117.69,117.64,24.667011]
[1769703800306,7.6584,117.7,117.64,24.667011]
[1769703801607,7.659,117.69,117.64,24.667011]
[1769703802009,7.659,117.69,117.61,24.667011]
[1769703802010,23.70115272,117.68,117.61,24.667011]
[1769703803308,7.6603,117.67,117.61,24.667011]
[1769703803505,23.70115272,117.68,117.61,24.667011]
[1769703804507,23.70115272,117.67,117.59,32.331911]
[1769703804719,23.70115272,117.66,117.59,24.667011]
[1769703805013,23.70115272,117.66,117.57,3.74879243]
[1769703805014,23.70115272,117.64,117.57,3.74879243]
[1769703805413,32.79833016,117.62,117.57,3.74879243]
[1769703805614,25.13463016,117.61,117.57,3.74879243]
[1769703806817,25.13463016,117.64,117.57,27.82453013]
[1769703807705,7.6636,117.62,117.57,27.82453013]
[1769703808513,25.13463016,117.64,117.57,27.82453013]
[1769703809113,25.13463016,117.66,117.59,24.0757377]
[1769703810119,25.13463016,117.69,117.61,24.0757377]
[1769703811114,7.6598,117.68,117.61,24.0757377]
[1769703811314,25.13463016,117.68,117.61,24.0757377]
[1769703811515,25.13463016,117.7,117.61,24.0757377]
[1769703811818,7.6596,117.69,117.61,24.0757377]
[1769703812015,25.13463016,117.68,117.61,24.0757377]
[1769703812917,24.74138085,117.67,117.59,25.6660763]
[1769703813217,24.74138085,117.66,117.59,25.6660763]
[1769703813419,7.6623,117.64,117.59,25.6660763]
[1769703814212,24.74138085,117.66,117.59,25.6660763]
[1769703814818,7.6616,117.65,117.59,25.6660763]
[1769703815117,24.74138085,117.66,117.59,25.6660763]
[1769703816327,7.6624,117.64,117.59,25.6660763]
[1769703818324,7.6617,117.65,117.59,25.6660763]
[1769703818526,24.74138085,117.68,117.59,25.6660763]
[1769703819116,7.6609,117.67,117.6,25.6660763]
[1769703819616,28.07431106,117.7,117.64,3.33293021]
[1769703819816,28.07431106,117.7,117.63,3.33293021]
[1769703820121,143.88318085,117.69,117.62,3.33293021]
[1769703820324,24.74138085,117.69,117.63,3.33293021]
[1769703820522,24.74138085,117.69,117.64,3.33293021]
[1769703820823,32.40038085,117.69,117.65,3.33293021]
[1769703821527,7.6598,117.68,117.63,25.6660763]
[1769703822828,32.40038085,117.69,117.63,25.6660763]
[1769703823522,24.74138085,117.72,117.64,25.6660763]
[1769703823726,24.74138085,117.72,117.65,25.6660763]
[1769703825331,32.39848085,117.72,117.66,7.93643504]
[1769703825522,32.39848085,117.72,117.65,25.6660763]
[1769703827834,7.6577,117.71,117.65,25.6660763]
[1769703828428,24.74138085,117.72,117.65,25.6660763]
[1769703829326,32.39908085,117.72,117.65,25.6660763]
[1769703829932,7.6577,117.71,117.65,25.6660763]
[1769703833432,24.74138085,117.69,117.63,25.6660763]
[1769703834229,24.74138085,117.71,117.64,25.6660763]
[1769703835333,7.6586,117.7,117.64,25.6660763]
[1769703836831,33.83169678,117.7,117.64,25.6660763]
[1769703837028,33.83219678,117.69,117.63,24.09070248]
[1769703837937,7.6597,117.68,117.63,24.09070248]
[1769703838334,26.17309678,117.69,117.61,24.09070248]
[1769703838533,7.6603,117.67,117.61,24.09070248]
[1769703839730,7.661,117.66,117.61,24.09070248]
[1769703839931,26.17309678,117.66,117.59,24.09070248]
[1769703840232,7.6618,117.65,117.58,31.75690248]
[1769703840633,119.1339,117.7,117.6,24.09070248]
[1769703840833,26.17309678,117.68,117.6,24.09070248]
[1769703841429,26.17309678,117.68,117.61,24.09070248]
[1769703842132,26.17309678,117.7,117.61,24.09070248]
[1769703842338,26.17309678,117.7,117.62,24.09070248]
[1769703842731,7.6597,117.68,117.62,24.09070248]
[1769703843334,7.6597,117.68,117.63,24.09070248]
[1769703844742,7.6604,117.67,117.61,24.09070248]
[1769703845741,7.661,117.66,117.61,24.09070248]
[1769703846341,7.6617,117.65,117.59,24.09070248]
[1769703846639,145.32799678,117.68,117.59,24.09070248]
[1769703846843,7.661,117.66,117.6,24.09070248]
[1769703847236,26.17309678,117.67,117.6,24.09070248]
[1769703847535,26.17309678,117.66,117.58,24.09070248]
[1769703848329,7.6623,117.64,117.58,24.09070248]
[1769703848935,7.6616,117.66,117.59,24.09070248]
[1769703849135,26.17309678,117.65,117.59,24.09070248]
[1769703849335,33.83489678,117.65,117.59,24.09070248]
[1769703851942,33.83489678,117.65,117.59,31.75620248]
[1769703851943,26.17309678,117.65,117.59,31.75620248]
[1769703852346,153.26470718,117.68,117.6,24.09070248]
[1769703852645,33.83339678,117.68,117.61,24.09070248]
[1769703853236,33.83349678,117.67,117.61,24.09070248]
[1769703853443,26.17309678,117.65,117.57,27.83949491]
[1769703853637,34.10980718,117.63,117.57,3.74879243]
[1769703853849,34.10980718,117.61,117.54,24.09070248]
[1769703854449,7.6649,117.6,117.54,24.09070248]
[1769703855242,33.83729678,117.61,117.54,31.75950248]
[1769703855447,26.17309678,117.63,117.55,24.09070248]
[1769703856439,7.6636,117.62,117.55,31.75880248]
[1769703856640,26.17309678,117.61,117.53,24.09070248]
[1769703857747,34.10980718,117.62,117.55,24.09070248]
[1769703857948,26.17309678,117.61,117.53,24.09070248]
[1769703858851,7.6649,117.6,117.54,24.09070248]
[1769703860548,7.6649,117.6,117.55,24.09070248]
[1769703860748,7.6642,117.61,117.55,24.09070248]
[1769703862153,7.6642,117.61,117.55,31.75880248]
[1769703863350,15.6003104,117.62,117.56,24.09070248]
[1769703863556,119.1841,117.65,117.56,24.09070248]
[1769703863557,3.33742401,117.61,117.56,31.75810248]
[1769703865051,3.33742401,117.64,117.58,24.09070248]
[1769703865259,26.17309678,117.67,117.58,27.42812649]
[1769703865451,3.33742401,117.65,117.58,27.42812649]
[1769703865656,3.33742401,117.65,117.6,32.32833824]
[1769703865952,29.51052079,117.67,117.6,24.66363824]
[1769703866355,3.33742401,117.65,117.6,24.66363824]
[1769703867049,3.33742401,117.65,117.6,32.32853824]
[1769703867252,26.17309678,117.67,117.6,24.66363824]
[1769703867446,3.33742401,117.66,117.6,24.66363824]
[1769703867650,33.83359678,117.67,117.6,24.66363824]
[1769703868055,33.83359678,117.67,117.61,24.66363824]
[1769703868257,33.0407252,117.69,117.61,24.66363824]
[1769703868452,33.0407252,117.69,117.58,119.2501]
[1769703868453,33.3218203,117.66,117.58,24.66363824]
[1769703868650,33.3218203,117.64,117.58,24.66363824]
[1769703869361,33.3218203,117.64,117.55,24.66363824]
[1769703869863,33.3218203,117.64,117.57,24.66363824]
[1769703870354,40.9842203,117.64,117.57,32.33033824]
[1769703871261,33.0442252,117.63,117.57,24.66363824]
[1769703872459,7.6637,117.62,117.55,24.66363824]
[1769703872650,33.0448252,117.62,117.55,24.66363824]
[1769703873154,33.0448252,117.62,117.56,26.27651675]
[1769703874153,41.39825577,117.64,117.56,33.94381675]
[1769703874451,41.39825577,117.64,117.53,119.3004]
[1769703874452,33.73535577,117.66,117.57,26.27651675]
[1769703874855,41.39665577,117.66,117.57,26.27651675]
[1769703875247,25.79466067,117.65,117.57,26.27651675]
[1769703875451,33.73535577,117.64,117.57,26.27651675]
[1769703876361,33.45696067,117.64,117.57,26.27651675]
[1769703877770,7.6623,117.64,117.57,26.27651675]
[1769703878257,33.45696067,117.64,117.57,26.27651675]
[1769703878863,25.79466067,117.63,117.55,26.27651675]
[1769703879858,25.79466067,117.61,117.55,26.27651675]
[1769703880262,25.79466067,117.61,117.53,33.94591675]
[1769703880565,7.6649,117.6,117.54,26.27651675]
[1769703881763,25.79466067,117.61,117.54,33.94521675]
[1769703882360,33.45916067,117.61,117.54,33.94521675]
[1769703883564,33.45916067,117.61,117.55,26.27651675]
[1769703883867,119.206,117.63,117.56,26.27651675]
[1769703883868,25.79466067,117.63,117.56,26.27651675]
[1769703884366,7.6623,117.64,117.58,26.27651675]
[1769703884662,25.79466067,117.65,117.58,26.27651675]
[1769703884864,33.45636067,117.65,117.59,7.6655]
[1769703885065,25.79466067,117.67,117.6,26.27651675]
[1769703885366,25.79466067,117.69,117.6,26.27651675]
[1769703886362,33.45496067,117.68,117.61,7.6642]
[1769703886665,33.45496067,117.68,117.61,33.94071675]
[1769703886866,25.79466067,117.68,117.61,26.27651675]
[1769703887062,25.79466067,117.67,117.61,26.27651675]
[1769703888066,25.79466067,117.65,117.59,26.27651675]
[1769703888866,25.79466067,117.65,117.58,7.6656]
[1769703889364,7.6623,117.64,117.58,7.6656]
[1769703890160,33.45766067,117.63,117.57,7.6667]
[1769703890462,33.45766067,117.63,117.54,365.85651675]
[1769703890463,25.79466067,117.63,117.55,26.27651675]
[1769703890662,7.665,117.6,117.53,26.27651675]
[1769703890961,25.79466067,117.61,117.53,26.27651675]
[1769703891560,7.6657,117.59,117.53,33.94581675]
[1769703893171,7.6646,117.61,117.55,26.27651675]
[1769703893772,7.6649,117.6,117.55,26.27651675]
[1769703895578,7.6643,117.61,117.55,33.94461675]
[1769703895769,33.73535577,117.62,117.55,33.94461675]
[1769703896871,41.39895577,117.62,117.55,26.27651675]
[1769703897682,7.6642,117.61,117.55,26.27651675]
[1769703898065,7.6636,117.63,117.57,23.99205165]
[1769703898470,119.1957,117.64,117.54,23.99205165]
[1769703898681,7.665,117.6,117.54,23.99205165]
[1769703900074,7.6658,117.59,117.54,23.99205165]
[1769703900275,144.53007611,117.6,117.54,23.99205165]
[1769703900470,25.29517611,117.6,117.54,23.99205165]
[1769703900872,7.6653,117.6,117.54,23.99205165]
[1769703901474,127.1247951,117.65,117.56,23.99205165]
[1769703901670,144.46707611,117.66,117.56,23.99205165]
[1769703901980,7.9406951,117.65,117.53,34.48481209]
[1769703902179,144.48697611,117.64,117.54,23.99205165]
[1769703902478,25.29517611,117.63,117.54,23.99205165]
[1769703902880,25.29517611,117.61,117.54,23.99205165]
[1769703903281,152.44167121,117.63,117.54,23.99205165]
[1769703903478,144.48567611,117.65,117.55,23.99205165]
[1769703903673,25.29517611,117.64,117.55,23.99205165]
[1769703903874,7.6638,117.62,117.55,31.66015165]
[1769703904071,25.29517611,117.63,117.55,23.99205165]
[1769703904579,25.29517611,117.62,117.55,23.99205165]
[1769703905080,32.95947611,117.61,117.53,23.99205165]
[1769703905475,25.29517611,117.61,117.53,23.99205165]
[1769703906375,7.665,117.6,117.53,23.99205165]
[1769703907576,40.90410869,117.6,117.53,23.99205165]
[1769703907970,7.6662,117.58,117.53,23.99205165]
[1769703908282,7.6662,117.58,117.52,23.99205165]
[1769703910576,25.29517611,117.59,117.52,7.6701]
[1769703910777,25.29517611,117.54,117.46,23.99205165]
[1769703910980,7.94393258,117.53,117.46,23.99205165]
[1769703911187,33.23910869,117.53,117.46,23.99205165]
[1769703911579,25.29517611,117.52,117.46,23.99205165]
[1769703911891,33.23910869,117.49,117.4,23.99205165]
[1769703912184,33.23910869,117.47,117.4,23.99205165]
[1769703912388,7.94393258,117.49,117.4,23.99205165]
[1769703912580,25.29517611,117.53,117.43,23.99205165]
[1769703913087,7.6705,117.52,117.43,23.99205165]
[1769703913287,152.55420869,117.52,117.43,23.99205165]
[1769703913488,33.23910869,117.5,117.43,23.99205165]
[1769703913682,40.91070869,117.5,117.43,23.99205165]
[1769703915181,25.29517611,117.49,117.4,23.99205165]
[1769703915391,33.23910869,117.48,117.4,23.99205165]
[1769703916590,15.61573258,117.5,117.41,23.99205165]
[1769703916782,33.23910869,117.51,117.42,23.99205165]
[1769703916986,7.94393258,117.53,117.44,23.99205165]
[1769703917286,33.23910869,117.54,117.44,23.99205165]
[1769703917486,33.23910869,117.54,117.45,23.99205165]
[1769703917487,25.29517611,117.54,117.45,23.99205165]
[1769703917686,7.94393258,117.58,117.48,23.99205165]
[1769703918186,7.94393258,117.58,117.5,31.66315165]
[1769703918987,32.96037611,117.6,117.51,7.6704]
[1769703919191,32.96037611,117.6,117.52,23.99205165]
[1769703919489,40.90430869,117.6,117.52,23.99205165]
[1769703920289,40.90430869,117.6,117.52,31.66195165]
[1769703921283,25.29517611,117.6,117.53,7.6693]
[1769703921484,119.2042,117.63,117.53,7.6693]
[1769703921485,7.94393258,117.65,117.55,23.99205165]
[1769703921689,7.94393258,117.65,117.56,23.99205165]
[1769703922288,25.29517611,117.64,117.56,23.99205165]
[1769703923294,7.6631,117.63,117.56,23.99205165]
[1769703923592,33.23910869,117.61,117.53,23.99205165]
[1769703923892,40.90360869,117.61,117.53,23.99205165]
[1769703924395,15.60723258,117.63,117.54,23.99205165]
[1769703924590,7.6633,117.63,117.54,23.99205165]
[1769703925294,7.6633,117.63,117.55,7.6678]
[1769703925594,7.6638,117.62,117.55,24.15294015]
[1769703925988,25.29517611,117.64,117.55,31.82084015]
[1769703926694,34.23787146,117.63,117.55,31.82084015]
[1769703926895,42.18180404,117.63,117.55,31.82084015]
[1769703927196,7.6639,117.62,117.55,24.15294015]
[1769703927695,7.6639,117.62,117.53,7.6692]
[1769703927696,34.51870404,117.61,117.53,7.6692]
[1769703927901,42.18310404,117.61,117.53,7.6692]
[1769703928189,42.18310404,117.61,117.53,31.82214015]
[1769703929099,15.60733258,117.63,117.55,24.15294015]
[1769703929893,26.57477146,117.64,117.57,24.15294015]
[1769703930194,26.57477146,117.66,117.57,24.15294015]
[1769703930791,34.23607146,117.66,117.58,7.666]
[1769703931091,34.23607146,117.66,117.58,31.81894015]
[1769703931595,34.23487146,117.68,117.59,31.81824015]
[1769703931797,26.57477146,117.64,117.55,24.15294015]
[1769703932002,26.57477146,117.66,117.56,24.15294015]
[1769703932192,34.51870404,117.66,117.56,24.15294015]
[1769703932397,34.51870404,117.66,117.58,24.15294015]
[1769703932594,26.57477146,117.66,117.58,24.15294015]
[1769703933503,26.57477146,117.66,117.59,7.6653]
[1769703934306,34.51870404,117.66,117.58,31.81904015]
[1769703934496,26.44047091,117.65,117.58,24.15294015]
[1769703935394,7.94393258,117.66,117.58,24.15294015]
[1769703935703,34.38440349,117.68,117.58,24.15294015]
[1769703936008,26.44047091,117.7,117.61,25.66696888]
[1769703936301,26.44047091,117.7,117.62,25.66696888]
[1769703936492,34.09887091,117.7,117.63,7.6626]
[1769703936696,34.09887091,117.7,117.63,33.32956888]
[1769703936896,26.44047091,117.7,117.63,25.66696888]
[1769703937103,7.6591,117.69,117.63,25.66696888]
[1769703938295,26.44047091,117.68,117.6,25.66696888]
[1769703939107,26.44047091,117.71,117.62,25.66696888]
[1769703940001,26.44047091,117.71,117.63,25.66696888]
[1769703940198,7.6569,117.73,117.64,25.66696888]
[1769703941004,26.44047091,117.74,117.67,7.6602]
[1769703941201,26.44047091,117.74,117.66,25.66696888]
[1769703941906,26.44047091,117.77,117.67,25.66696888]
[1769703942204,26.44047091,117.77,117.69,25.66696888]
[1769703942401,26.44047091,117.77,117.71,7.6577]
[1769703942598,7.94393258,117.79,117.7,25.66696888]
[1769703942905,34.38440349,117.79,117.7,25.66696888]
[1769703943295,34.38440349,117.79,117.7,33.32476888]